bitfinex/quotes_BTCUSD_20250901
["timestamp","ask_amount","ask_price","bid_price","bid_amount"]
[1756750911121,1.13123125,109280.0,109270.0,0.00798]
[1756750911303,1.13123125,109280.0,109270.0,0.00998]
[1756750911615,1.03931526,109280.0,109270.0,0.00998]
[1756750918819,1.03931526,109280.0,109270.0,0.005]
[1756750919710,1.03931526,109280.0,109270.0,0.00798]
[1756750920137,1.13123125,109280.0,109270.0,0.005]
[1756750920353,1.14118299,109280.0,109270.0,0.005]
[1756750921206,1.29118299,109280.0,109270.0,0.005]
[1756750921634,6.38207156,109280.0,109270.0,0.005]
[1756750921845,6.43042936,109280.0,109270.0,0.005]
[1756750922516,6.45794836,109280.0,109270.0,0.005]
[1756750922940,0.1830496,109260.0,109250.0,0.07334]
[1756750923150,0.52129965,109260.0,109250.0,0.00498]
[1756750924176,0.52134672,109260.0,109250.0,0.00898]
[1756750924962,0.52332672,109260.0,109250.0,0.00898]
[1756750925170,0.52332672,109260.0,109250.0,0.004]
[1756750925171,1.22429595,109260.0,109250.0,0.004]
[1756750925376,1.55961595,109260.0,109250.0,0.004]
[1756750925583,1.7353971,109260.0,109250.0,0.004]
[1756750925783,0.18308311,109240.0,109230.0,0.22935]
[1756750925991,0.52133316,109240.0,109230.0,0.23131]
[1756750927243,0.52133316,109240.0,109230.0,0.07531]
[1756750927449,0.52331316,109240.0,109230.0,0.00891]
[1756750928679,0.70659784,109240.0,109230.0,0.00891]
[1756750928885,0.70659784,109240.0,109230.0,0.01191]
[1756750929451,0.21036779,109240.0,109230.0,0.00891]
[1756750929667,0.54861784,109240.0,109230.0,0.00491]
[1756750929896,0.54861784,109240.0,109230.0,0.00691]
[1756750930105,0.54861784,109240.0,109230.0,0.00991]
[1756750930311,0.54861784,109240.0,109230.0,0.00691]
[1756750930524,0.54861784,109240.0,109230.0,0.00991]
[1756750939813,0.55059784,109240.0,109230.0,0.00991]
[1756750940934,0.55059784,109240.0,109230.0,0.005]
[1756750940935,0.54059784,109240.0,109230.0,0.005]
[1756750941393,0.69779784,109240.0,109230.0,0.005]
[1756750942223,0.69643784,109240.0,109230.0,0.005]
[1756750943600,0.69643784,109240.0,109230.0,0.00991]
[1756750944167,0.49621281,109240.0,109230.0,0.00991]
[1756750944375,0.67739592,109240.0,109230.0,0.00991]
[1756750944590,0.52147592,109240.0,109230.0,0.19300988]
[1756750945417,0.00014276,109240.0,109230.0,0.19300988]
[1756750945613,0.52133157,109250.0,109230.0,0.19300988]
[1756750945863,0.86133157,109250.0,109240.0,0.00295]
[1756750946071,0.86133157,109250.0,109240.0,0.00491]
[1756750947316,0.88878954,109250.0,109240.0,0.00491]
[1756750947710,0.89076954,109250.0,109240.0,0.00491]
[1756750947906,0.89076954,109250.0,109240.0,0.00591]
[1756750948132,1.04672954,109250.0,109240.0,0.00591]
[1756750948602,1.04672954,109250.0,109240.0,0.00791]
[1756750948759,0.88878954,109250.0,109240.0,0.19099311]
[1756750949606,0.55053949,109250.0,109240.0,0.19099311]
[1756750949807,0.55053949,109250.0,109240.0,0.34683311]
[1756750949808,0.02745797,109250.0,109240.0,0.34683311]
[1756750950010,0.18309667,109260.0,109250.0,0.18306636]
[1756750950269,0.21025335,109260.0,109250.0,0.19026468]
[1756750950470,0.02720375,109260.0,109250.0,0.18797636]
[1756750950919,0.21025335,109260.0,109250.0,0.18797636]
[1756750951205,0.02720375,109260.0,109250.0,0.18797636]
[1756750952231,4.707e-05,109260.0,109250.0,0.18797636]
[1756750952654,4.707e-05,109260.0,109250.0,0.34381636]
[1756750954129,4.707e-05,109260.0,109250.0,0.34673636]
[1756750954400,4.707e-05,109260.0,109250.0,0.37425136]
[1756750955976,4.707e-05,109260.0,109250.0,0.37825136]
[1756750956392,0.02745022,109260.0,109250.0,0.37825136]
[1756750960836,0.02745022,109260.0,109250.0,0.74399622]
[1756750960837,4.707e-05,109260.0,109250.0,0.74399622]
[1756750961036,4.707e-05,109260.0,109250.0,0.89967622]
[1756750961591,4.707e-05,109260.0,109250.0,1.29967622]
[1756750963813,4.707e-05,109260.0,109250.0,1.14399622]
[1756750964047,4.707e-05,109260.0,109250.0,1.29967622]
[1756750964887,4.707e-05,109260.0,109250.0,1.14399622]
[1756750965099,4.707e-05,109260.0,109250.0,1.29967622]
[1756750965758,4.707e-05,109260.0,109250.0,1.48224627]
[1756750965963,4.707e-05,109260.0,109250.0,1.29967622]
[1756750966605,4.707e-05,109260.0,109250.0,0.89967622]
[1756750967030,4.707e-05,109260.0,109250.0,1.29967622]
[1756750970768,4.707e-05,109260.0,109250.0,0.80574617]
[1756750970975,4.707e-05,109260.0,109250.0,1.29967622]
[1756750971964,4.707e-05,109260.0,109250.0,1.48399622]
[1756750972175,4.707e-05,109260.0,109250.0,1.97792627]
[1756750973155,4.707e-05,109260.0,109250.0,1.97492627]
[1756750973371,4.707e-05,109260.0,109250.0,1.14274617]
[1756750973587,4.707e-05,109260.0,109250.0,1.64263622]
[1756750975094,4.707e-05,109260.0,109250.0,1.64963622]
[1756750976870,4.707e-05,109260.0,109250.0,1.49399622]
[1756750977084,4.707e-05,109260.0,109250.0,1.98788627]
[1756750977518,4.707e-05,109260.0,109250.0,1.64963622]
[1756750978519,4.707e-05,109260.0,109250.0,1.98788627]
[1756750983169,4.707e-05,109260.0,109250.0,2.25118627]
[1756750983970,1e-08,109260.0,109250.0,2.25118627]
[1756750984176,1e-08,109260.0,109250.0,2.30118627]
[1756750984871,1e-08,109260.0,109250.0,2.35118627]
[1756750985392,1e-08,109260.0,109250.0,2.43344586]
[1756750986007,1e-08,109260.0,109250.0,2.27780586]
[1756750986221,1e-08,109260.0,109250.0,2.43344586]
[1756750986639,1e-08,109260.0,109250.0,2.35118627]
[1756750988401,1e-08,109260.0,109250.0,2.43344586]
[1756750988541,1e-08,109260.0,109250.0,2.35118627]
[1756750988752,1e-08,109260.0,109250.0,1.51904617]
[1756750988961,0.00198001,109260.0,109250.0,1.39319735]
[1756750989161,0.00198001,109260.0,109250.0,1.6289974]
[1756750989599,1e-08,109260.0,109250.0,1.69993622]
[1756750989807,1e-08,109260.0,109250.0,1.64993622]
[1756750990019,1e-08,109260.0,109250.0,1.69993622]
[1756750990215,1e-08,109260.0,109250.0,2.03818627]
[1756750990435,1e-08,109260.0,109250.0,2.08818627]
[1756750993553,1e-08,109260.0,109250.0,2.17044586]
[1756750994171,1e-08,109260.0,109250.0,2.08818627]
[1756750994814,1e-08,109260.0,109250.0,2.17044586]
[1756750995035,1e-08,109260.0,109250.0,2.43374586]
[1756751008663,1e-08,109260.0,109250.0,2.45209586]
[1756751008881,1e-08,109260.0,109250.0,2.43374586]
[1756751015516,1e-08,109260.0,109250.0,2.43466586]
[1756751015683,1e-08,109260.0,109250.0,2.27814586]
[1756751015881,1e-08,109260.0,109250.0,2.43462586]
[1756751016118,0.00198001,109260.0,109250.0,2.22289586]
[1756751016321,0.00198001,109260.0,109250.0,2.02022699]
[1756751016570,0.00198001,109260.0,109250.0,1.9879674]
[1756751016763,0.00334001,109260.0,109250.0,2.0509205]
[1756751017154,0.00334001,109260.0,109250.0,1.8444005]
[1756751017315,0.00334001,109260.0,109250.0,1.92998168]
[1756751017575,0.00334001,109260.0,109250.0,1.9509205]
[1756751019025,0.00334001,109260.0,109250.0,1.7944005]
[1756751019233,0.00334001,109260.0,109250.0,1.1911005]
[1756751019406,0.00334001,109260.0,109250.0,1.6875805]
[1756751020567,0.00334001,109260.0,109250.0,1.34933045]
[1756751020771,0.00334001,109260.0,109250.0,1.6875805]
[1756751022317,0.00334001,109260.0,109250.0,1.5311005]
[1756751022563,0.00334001,109260.0,109250.0,1.19285045]
[1756751022783,0.00334001,109260.0,109250.0,1.64552622]
[1756751023430,0.00334001,109260.0,109250.0,1.24552622]
[1756751023634,0.00334001,109260.0,109250.0,0.90727617]
[1756751023850,0.00334001,109260.0,109250.0,1.24552622]
[1756751024992,0.00334001,109260.0,109250.0,1.08908622]
[1756751025209,0.00334001,109260.0,109250.0,1.24556622]
[1756751025426,0.00198001,109260.0,109250.0,1.24556622]
[1756751026316,0.00334001,109260.0,109250.0,1.24556622]
[1756751027820,0.00198001,109260.0,109250.0,1.24556622]
[1756751030300,1e-08,109260.0,109250.0,1.25074622]
[1756751031481,1e-08,109260.0,109250.0,1.58899627]
[1756751031680,1e-08,109260.0,109250.0,1.25074622]
[1756751032046,1e-08,109260.0,109250.0,0.91249617]
[1756751032306,1e-08,109260.0,109250.0,1.25074622]
[1756751033872,1e-08,109260.0,109250.0,1.65074622]
[1756751035442,1e-08,109260.0,109250.0,1.98899627]
[1756751035997,1e-08,109260.0,109250.0,1.65074622]
[1756751036966,1e-08,109260.0,109250.0,1.69212985]
[1756751037756,1e-08,109260.0,109250.0,1.69192985]
[1756751039367,1e-08,109260.0,109250.0,1.53564985]
[1756751039544,1e-08,109260.0,109250.0,1.69188985]
[1756751040144,0.00198001,109260.0,109250.0,1.53564985]
[1756751040329,1e-08,109260.0,109250.0,1.53564985]
[1756751040539,0.00198001,109260.0,109250.0,1.69180985]
[1756751040734,1e-08,109260.0,109250.0,1.69180985]
[1756751042450,0.55100289,109300.0,109290.0,0.18299935]
[1756751042653,0.55104998,109300.0,109290.0,0.33907935]
[1756751043494,0.21279993,109300.0,109290.0,0.33907935]
[1756751043691,0.55104998,109300.0,109290.0,0.33907935]
[1756751043893,0.55104998,109300.0,109290.0,0.34007935]
[1756751044415,0.54190085,109300.0,109290.0,0.34107935]
[1756751044592,0.88190085,109300.0,109290.0,0.34107935]
[1756751045680,0.86309824,109300.0,109290.0,0.34107935]
[1756751045887,0.52484819,109300.0,109290.0,0.34107935]
[1756751047402,0.52484819,109300.0,109290.0,0.002]
[1756751047535,0.86309824,109300.0,109290.0,0.002]
[1756751047896,0.86309824,109300.0,109290.0,0.15796]
[1756751048937,0.86309824,109300.0,109290.0,0.15792]
[1756751051428,0.86309824,109300.0,109290.0,0.002]
[1756751051641,0.95501423,109300.0,109290.0,0.15788]
[1756751054133,0.95501423,109300.0,109290.0,0.1578]
[1756751054358,0.61676418,109300.0,109290.0,0.1578]
[1756751054580,0.95501423,109300.0,109290.0,0.1578]
[1756751055090,1.04693022,109300.0,109290.0,0.002]
[1756751055334,0.95501423,109300.0,109290.0,0.002]
[1756751055788,1.02789866,109300.0,109290.0,0.002]
[1756751056023,6.38117535,109300.0,109290.0,0.002]
[1756751056255,6.4230798,109300.0,109290.0,0.002]
[1756751056698,6.51499579,109300.0,109290.0,0.002]
[1756751057378,6.47309134,109300.0,109290.0,0.002]
[1756751058302,6.49025617,109300.0,109290.0,0.002]
[1756751058718,0.18303285,109270.0,109260.0,0.07354631]
[1756751058953,0.61319889,109270.0,109260.0,0.07354631]
[1756751059826,0.1830496,109260.0,109250.0,0.34193589]
[1756751060043,0.52129965,109260.0,109250.0,0.34193589]
[1756751060282,0.52129965,109260.0,109250.0,0.34396589]
[1756751060907,0.52129965,109260.0,109250.0,0.34696589]
[1756751061121,0.1830496,109260.0,109250.0,0.3470521]
[1756751061587,0.1830496,109260.0,109250.0,0.3490521]
[1756751061815,0.27494884,109270.0,109250.0,0.3490521]
[1756751062031,0.61319889,109270.0,109260.0,0.00307]
[1756751062461,0.5212829,109270.0,109260.0,0.1881496]
[1756751062927,0.18303285,109270.0,109260.0,0.1881496]
[1756751064958,0.18303285,109270.0,109260.0,0.0051]
[1756751065165,0.5212829,109270.0,109260.0,0.0051]
[1756751067035,0.5212829,109270.0,109260.0,0.1881496]
[1756751068224,0.5212829,109270.0,109260.0,0.15584]
[1756751068857,0.5212829,109270.0,109260.0,0.15891]
[1756751069091,0.5212829,109270.0,109260.0,0.15584]
[1756751069736,0.5212829,109270.0,109260.0,0.15891]
[1756751070777,0.5212829,109270.0,109260.0,0.15584]
[1756751071211,0.5212829,109270.0,109260.0,0.15891]
[1756751072477,0.5212829,109270.0,109260.0,0.15584]
[1756751072944,0.5212829,109270.0,109250.0,0.3695791]
[1756751072945,0.1830496,109260.0,109250.0,0.3695791]
[1756751073193,0.52129965,109260.0,109250.0,0.3716091]
[1756751073437,0.1830496,109260.0,109250.0,0.3716091]
[1756751074122,0.1830496,109260.0,109250.0,0.3736091]
[1756751074354,1.1995497,109260.0,109250.0,0.02960321]
[1756751074594,1.3553897,109260.0,109250.0,0.00208621]
[1756751074823,1.01713965,109260.0,109250.0,0.00208621]
[1756751075057,1.01713965,109260.0,109250.0,0.00308621]
[1756751075747,0.86129965,109260.0,109250.0,0.00610621]
[1756751075965,1.01713965,109260.0,109250.0,0.00610621]
[1756751083996,0.86129965,109260.0,109250.0,0.00610621]
[1756751084216,1.01713965,109260.0,109250.0,0.00610621]
[1756751084471,1.56691229,109260.0,109250.0,0.00308621]
[1756751084696,1.45624115,109260.0,109250.0,0.00308621]
[1756751084881,1.63960315,109260.0,109250.0,0.00308621]
[1756751085554,1.63960315,109260.0,109250.0,0.00108621]
[1756751085808,1.63960315,109260.0,109250.0,8.621e-05]
[1756751086469,1.50101939,109260.0,109250.0,8.621e-05]
[1756751086679,1.49458617,109260.0,109250.0,8.621e-05]
[1756751086888,1.49458617,109260.0,109250.0,0.00108621]
[1756751087295,1.49458617,109260.0,109250.0,8.621e-05]
[1756751087544,1.49458617,109260.0,109250.0,0.00108621]
[1756751088405,1.58650216,109260.0,109250.0,0.00108621]
[1756751089046,1.6273256,109260.0,109250.0,0.00108621]
[1756751089940,1.6273256,109260.0,109250.0,8.621e-05]
[1756751090129,1.6283256,109260.0,109250.0,8.621e-05]
[1756751090339,1.6293256,109260.0,109250.0,8.621e-05]
[1756751091015,1.53740961,109260.0,109250.0,8.621e-05]
[1756751091667,1.53640961,109260.0,109250.0,8.621e-05]
[1756751091875,1.53740961,109260.0,109250.0,8.621e-05]
[1756751092662,1.51765113,109260.0,109250.0,8.621e-05]
[1756751092870,1.53740357,109260.0,109250.0,8.621e-05]
[1756751093414,0.86090347,109260.0,109250.0,8.621e-05]
[1756751093621,1.53740357,109260.0,109250.0,8.621e-05]
[1756751094387,1.54383362,109260.0,109250.0,8.621e-05]
[1756751094814,1.54383365,109260.0,109250.0,8.621e-05]
[1756751095444,0.67067011,109260.0,109250.0,0.00505621]
[1756751095647,1.15833008,109260.0,109250.0,0.00505621]
[1756751099977,1.13857764,109260.0,109250.0,0.00505621]
[1756751100200,0.98273764,109260.0,109250.0,0.00505621]
[1756751100397,1.13857764,109260.0,109250.0,0.00505621]
[1756751102192,1.15834432,109260.0,109250.0,0.00505621]
[1756751102446,1.00893913,109260.0,109250.0,0.00505621]
[1756751102644,1.16473913,109260.0,109250.0,0.00505621]
[1756751102842,1.16473912,109260.0,109250.0,0.00505621]
[1756751103683,1.16473912,109260.0,109250.0,0.00310621]
[1756751103885,0.82648907,109260.0,109250.0,0.00505621]
[1756751104107,1.16473912,109260.0,109250.0,0.00505621]
[1756751104885,0.67068907,109260.0,109250.0,0.00505621]
[1756751105111,0.2125716,109260.0,109250.0,0.18812257]
[1756751105329,0.3408496,109260.0,109250.0,0.18812257]
[1756751106467,0.3408496,109260.0,109250.0,0.00505621]
[1756751106682,0.3398496,109260.0,109250.0,0.00505621]
[1756751106893,0.3388496,109260.0,109250.0,0.18812257]
[1756751107113,0.3388496,109260.0,109250.0,0.18912257]
[1756751107804,0.1830496,109260.0,109250.0,0.18912257]
[1756751109383,0.1830496,109260.0,109250.0,0.00605621]
[1756751109604,0.52129965,109260.0,109250.0,0.18912257]
[1756751109877,0.52129965,109260.0,109250.0,0.00605621]
[1756751112320,0.8595497,109260.0,109250.0,0.00108621]
[1756751113214,0.88724031,109260.0,109250.0,0.00108621]
[1756751113426,0.88724031,109260.0,109250.0,8.621e-05]
[1756751113645,0.9811563,109260.0,109250.0,8.621e-05]
[1756751113865,1.00656668,109260.0,109250.0,8.621e-05]
[1756751114102,1.03408768,109260.0,109250.0,8.621e-05]
[1756751114330,1.05386604,109260.0,109250.0,8.621e-05]
[1756751114749,1.05286604,109260.0,109250.0,8.621e-05]
[1756751115249,1.05386604,109260.0,109250.0,8.621e-05]
[1756751116380,1.20962604,109260.0,109250.0,8.621e-05]
[1756751119002,6.64154203,109260.0,109250.0,8.621e-05]
[1756751119214,6.55606557,109260.0,109250.0,8.621e-05]
[1756751119424,6.60651564,109260.0,109250.0,8.621e-05]
[1756751120521,6.60651456,109260.0,109250.0,8.621e-05]
[1756751122578,7.05521456,109260.0,109250.0,8.621e-05]
[1756751123232,7.09660677,109260.0,109250.0,8.621e-05]
[1756751123448,7.22147957,109260.0,109250.0,8.621e-05]
[1756751124088,7.22146151,109260.0,109250.0,8.621e-05]
[1756751124300,7.1885047,109260.0,109250.0,8.621e-05]
[1756751124930,7.09082871,109260.0,109250.0,8.621e-05]
[1756751125140,7.09658871,109260.0,109250.0,8.621e-05]
[1756751125362,7.07117833,109260.0,109250.0,8.621e-05]
[1756751125574,7.22117833,109260.0,109250.0,8.621e-05]
[1756751125786,7.06541833,109260.0,109250.0,0.00531621]
[1756751125995,6.72716828,109260.0,109250.0,0.00531621]
[1756751126206,6.85523767,109260.0,109250.0,0.00531621]
[1756751126415,6.79836721,109260.0,109250.0,0.00531621]
[1756751126647,6.89671506,109260.0,109250.0,0.00531621]
[1756751127474,6.8902832,109260.0,109250.0,0.00531621]
[1756751129230,6.79836721,109260.0,109250.0,0.00531621]
[1756751129725,7.13661726,109260.0,109250.0,0.00531621]
[1756751130912,6.79836721,109260.0,109250.0,0.00531621]
[1756751131456,6.46011716,109260.0,109250.0,0.00531621]
[1756751131659,6.79836721,109260.0,109250.0,0.00531621]
[1756751133743,6.756975,109260.0,109250.0,0.00531621]
[1756751135561,6.601215,109260.0,109250.0,0.00531621]
[1756751135766,5.32426495,109260.0,109250.0,0.18838257]
[1756751135969,5.2125706,109260.0,109250.0,0.18838257]
[1756751136190,5.3682906,109260.0,109250.0,0.18838257]
[1756751136395,5.6807696,109260.0,109250.0,0.00531621]
[1756751136782,6.01901965,109260.0,109250.0,0.00531621]
[1756751137609,5.86329965,109260.0,109250.0,0.00531621]
[1756751137807,6.01901965,109260.0,109250.0,0.00531621]
[1756751138799,6.01801965,109260.0,109250.0,0.18838257]
[1756751139686,6.01901965,109260.0,109250.0,0.18838257]
[1756751139916,6.01801965,109260.0,109250.0,0.18838257]
[1756751140145,6.01701965,109260.0,109250.0,0.18838257]
[1756751140775,6.01801965,109260.0,109250.0,0.18838257]
[1756751140976,6.01901965,109260.0,109250.0,0.18838257]
[1756751141182,6.01901965,109260.0,109250.0,0.00531621]
[1756751141600,6.11093564,109260.0,109250.0,0.00531621]
[1756751141822,5.6807696,109260.0,109250.0,0.18838257]
[1756751142038,6.01901965,109260.0,109250.0,0.18838257]
[1756751142248,5.86329965,109260.0,109250.0,0.18838257]
[1756751142457,6.01897965,109260.0,109250.0,0.18838257]
[1756751143359,5.68025005,109260.0,109250.0,0.18838257]
[1756751143577,0.002,109260.0,109250.0,0.18838257]
[1756751144217,0.002,109260.0,109250.0,0.34406257]
[1756751144418,0.8979491,109280.0,109270.0,0.18303285]
[1756751144642,0.34,109270.0,109260.0,0.18303334]
[1756751144843,0.34,109270.0,109260.0,0.18532146]
[1756751145148,0.34,109270.0,109260.0,0.18744146]
[1756751145286,0.34,109270.0,109260.0,0.19057146]
[1756751145509,0.34,109270.0,109260.0,0.18828334]
[1756751146947,0.341,109270.0,109260.0,0.18828334]
[1756751147114,0.52303285,109270.0,109260.0,0.18828334]
[1756751147540,0.52403285,109270.0,109260.0,0.18928334]
[1756751148217,0.341,109270.0,109260.0,0.18928334]
[1756751148645,0.34,109270.0,109260.0,0.18928334]
[1756751150864,0.29009367,109290.0,109270.0,0.18303285]
[1756751151074,0.74731876,109290.0,109280.0,0.1882661]
[1756751151285,6.01691876,109290.0,109280.0,0.00525]
[1756751151497,6.01691876,109290.0,109280.0,0.1882661]
[1756751152335,6.01891876,109290.0,109280.0,0.1882661]
[1756751152549,6.02091876,109290.0,109280.0,0.1882661]
[1756751152766,6.01691876,109290.0,109280.0,0.00525]
[1756751153223,0.86527876,109290.0,109280.0,0.1882661]
[1756751153417,1.02091876,109290.0,109280.0,0.1882661]
[1756751153621,1.01891876,109290.0,109280.0,0.1882661]
[1756751153978,1.01791876,109290.0,109280.0,0.1882661]
[1756751154813,1.01791876,109290.0,109280.0,0.00525]
[1756751155364,1.01891876,109290.0,109280.0,0.00525]
[1756751156810,1.01891876,109290.0,109280.0,0.00313]
[1756751161679,0.1830161,109280.0,109270.0,0.00313]
[1756751161896,0.18303285,109270.0,109260.0,0.00313]
[1756751162070,0.5212829,109270.0,109260.0,0.00313]
[1756751162515,0.6768429,109270.0,109260.0,0.00525]
[1756751162878,0.1830496,109260.0,109250.0,0.25669121]
[1756751163074,0.52129965,109260.0,109250.0,0.25669121]
[1756751163274,0.1830496,109260.0,109250.0,0.44187757]
[1756751164222,0.1830496,109260.0,109250.0,0.44487757]
[1756751165192,0.1830496,109260.0,109250.0,0.44687757]
[1756751166640,0.5212829,109270.0,109260.0,0.1830496]
[1756751166876,0.5212829,109270.0,109260.0,0.1851196]
[1756751167176,0.18303285,109270.0,109260.0,0.3437496]
[1756751167579,0.18303285,109270.0,109260.0,0.1607]
[1756751168033,0.18303285,109270.0,109260.0,0.3437496]
[1756751168517,0.18303285,109270.0,109260.0,0.3447496]
[1756751168977,0.18303285,109270.0,109260.0,0.00814]
[1756751169207,0.18303285,109270.0,109260.0,0.3467496]
[1756751171202,0.2196819,109280.0,109260.0,0.3467496]
[1756751171411,0.5321669,109280.0,109270.0,0.18610285]
[1756751171634,0.5321669,109280.0,109270.0,0.18817285]
[1756751171857,0.5230161,109280.0,109270.0,0.5264229]
[1756751172602,0.43961466,109290.0,109270.0,0.18817285]
[1756751172603,0.37521167,109290.0,109270.0,0.18817285]
[1756751172606,0.1830161,109280.0,109270.0,0.5264229]
[1756751172816,0.34769867,109290.0,109270.0,0.5264229]
[1756751173034,0.34769867,109290.0,109280.0,0.00307]
[1756751173267,0.68769867,109290.0,109280.0,0.00514]
[1756751174657,0.68769867,109290.0,109280.0,0.00307]
[1756751175109,0.47595681,109290.0,109280.0,0.00307]
[1756751175285,0.65998325,109290.0,109280.0,0.00307]
[1756751175880,0.33013321,109290.0,109280.0,0.00307]
[1756751178909,0.1830161,109280.0,109270.0,0.18610285]
[1756751179075,0.1830161,109280.0,109270.0,0.34369285]
[1756751180413,0.1830161,109280.0,109270.0,0.34469285]
[1756751186105,0.66638326,109290.0,109270.0,0.34469285]
[1756751186318,0.68590645,109290.0,109280.0,0.1860861]
[1756751186517,0.1921764,109290.0,109280.0,0.00307]
[1756751186732,0.3476564,109290.0,109280.0,0.1881561]
[1756751187529,0.3486564,109290.0,109280.0,0.1881561]
[1756751187818,0.3496564,109290.0,109280.0,0.00514]
[1756751188249,0.3486564,109290.0,109280.0,0.00307]
[1756751188867,0.68690645,109290.0,109280.0,0.00307]
[1756751190035,0.68790645,109290.0,109280.0,0.00307]
[1756751190242,1.0261565,109290.0,109280.0,0.00307]
[1756751190677,0.68790645,109290.0,109280.0,0.00514]
[1756751191086,0.002,109290.0,109280.0,0.1881561]
[1756751191306,0.34025005,109290.0,109280.0,0.1881561]
[1756751191933,0.33825005,109290.0,109280.0,0.1881561]
[1756751192140,0.5222494,109290.0,109280.0,0.1881561]
[1756751192552,0.5212494,109290.0,109280.0,0.1881561]
[1756751192765,0.5212494,109290.0,109280.0,0.1891561]
[1756751193204,0.5222494,109290.0,109280.0,0.1891561]
[1756751193620,0.5212494,109290.0,109280.0,0.1891561]
[1756751194593,0.18299935,109290.0,109280.0,0.1891561]
[1756751194816,0.5212494,109290.0,109280.0,0.1891561]
[1756751197000,0.33825005,109290.0,109280.0,0.1891561]
[1756751197214,0.5212494,109290.0,109280.0,0.1891561]
[1756751198226,0.5212494,109290.0,109280.0,0.3445561]
[1756751199386,0.5212494,109290.0,109280.0,0.1891561]
[1756751199594,0.02046498,109300.0,109290.0,0.18299935]
[1756751199801,0.02046498,109300.0,109290.0,0.34584684]
[1756751200004,0.33825005,109300.0,109290.0,0.34355935]
[1756751201372,1.11724328,109320.0,109310.0,0.18296587]
[1756751201571,1.27357828,109320.0,109310.0,0.18609587]
[1756751201788,0.74316358,109320.0,109310.0,0.34149587]
[1756751201999,0.56635142,109320.0,109310.0,0.34352587]
[1756751202197,0.56635142,109320.0,109310.0,0.34252587]
[1756751202423,0.56635142,109320.0,109310.0,0.34152587]
[1756751203245,0.56835142,109320.0,109310.0,0.34152587]
[1756751203644,0.58267201,109320.0,109310.0,0.34152587]
[1756751203816,0.91892206,109320.0,109310.0,0.34152587]
[1756751204023,0.91992206,109320.0,109310.0,0.34152587]
[1756751204669,0.92092206,109320.0,109310.0,0.34152587]
[1756751205406,0.91992206,109320.0,109310.0,0.34152587]
[1756751205872,0.58167201,109320.0,109310.0,0.34152587]
[1756751206050,0.58167201,109320.0,109310.0,0.33949587]
[1756751206660,0.58167201,109320.0,109310.0,0.18409587]
[1756751206866,0.58167201,109320.0,109310.0,0.15536]
[1756751207102,0.91992206,109320.0,109310.0,0.16052]
[1756751207286,0.91992206,109320.0,109310.0,0.15849]
[1756751208088,0.91992206,109320.0,109310.0,0.34145587]
[1756751210758,0.91992206,109320.0,109310.0,0.15849]
[1756751211387,0.91992206,109320.0,109310.0,0.34145587]
[1756751212794,0.91992206,109320.0,109310.0,0.34348587]
[1756751214804,0.73697292,109320.0,109310.0,0.34348587]
[1756751215019,0.06047282,109320.0,109310.0,0.34348587]
[1756751215236,0.39872287,109320.0,109310.0,0.34348587]
[1756751215670,0.38440228,109320.0,109310.0,0.34348587]
[1756751217228,0.34879285,109320.0,109310.0,0.34348587]
[1756751217443,0.0105428,109320.0,109310.0,0.34348587]
[1756751217870,0.04585164,109320.0,109310.0,0.34348587]
[1756751218083,0.0105428,109320.0,109310.0,0.34348587]
[1756751219402,0.0105428,109320.0,109310.0,0.25848587]
[1756751219596,0.0105428,109320.0,109310.0,0.41376587]
[1756751220881,0.0105428,109320.0,109310.0,0.25848587]
[1756751221031,0.0105428,109320.0,109310.0,0.41376587]
[1756751221233,0.34879285,109320.0,109310.0,0.41376587]
[1756751221837,0.34879285,109320.0,109310.0,0.25848587]
[1756751222042,0.34879285,109320.0,109310.0,0.41372587]
[1756751223502,0.0105428,109320.0,109310.0,0.41372587]
[1756751226227,0.0105428,109320.0,109310.0,0.25848587]
[1756751226434,0.0105428,109320.0,109310.0,0.41372587]
[1756751228998,0.0105428,109320.0,109310.0,0.25848587]
[1756751229149,0.0105428,109320.0,109310.0,0.41368587]
[1756751229917,0.34879285,109320.0,109310.0,0.41368587]
[1756751233995,0.34879285,109320.0,109310.0,0.41161587]
[1756751234235,0.0105428,109320.0,109310.0,0.41357587]
[1756751234447,0.34879285,109320.0,109310.0,0.41357587]
[1756751236333,0.34879285,109320.0,109310.0,0.25645587]
[1756751236542,0.34879285,109320.0,109310.0,0.41161587]
[1756751236747,0.34879285,109320.0,109310.0,0.41357587]
[1756751237575,0.34879285,109320.0,109310.0,0.25841587]
[1756751237773,0.34879285,109320.0,109310.0,0.41357587]
[1756751242137,0.34879285,109320.0,109310.0,0.25841587]
[1756751242342,0.34879285,109320.0,109310.0,0.41353587]
[1756751242538,0.34879285,109320.0,109310.0,0.25841587]
[1756751242751,0.34879285,109320.0,109310.0,0.41353587]
[1756751243991,0.0105428,109320.0,109310.0,0.41353587]
[1756751246170,0.34851239,109320.0,109310.0,0.41353587]
[1756751247232,0.0105428,109320.0,109310.0,0.41353587]
[1756751247447,0.34851239,109320.0,109310.0,0.41353587]
[1756751250281,0.22783501,109330.0,109320.0,0.18294914]
[1756751250479,0.56594588,109330.0,109320.0,0.18601914]
[1756751251107,0.38301294,109330.0,109320.0,0.18601914]
[1756751251456,0.38501294,109330.0,109320.0,0.18601914]
[1756751251843,0.56794534,109330.0,109320.0,0.18601914]
[1756751252075,0.56894534,109330.0,109320.0,0.18601914]
[1756751258085,0.23097575,109330.0,109320.0,0.18601914]
[1756751258302,0.56894534,109330.0,109320.0,0.18601914]
[1756751259791,0.38601294,109330.0,109320.0,0.18798914]
[1756751260011,0.56894534,109330.0,109320.0,0.18798914]
[1756751260463,0.38601294,109330.0,109320.0,0.18798914]
[1756751261343,0.56894534,109330.0,109320.0,0.18798914]
[1756751261748,0.56894534,109330.0,109320.0,0.18601914]
[1756751262336,0.56894534,109330.0,109320.0,0.18798914]
[1756751264480,0.56894534,109330.0,109320.0,0.34298914]
[1756751266701,0.56894534,109330.0,109320.0,0.33794914]
[1756751266916,0.56894534,109330.0,109320.0,0.34109914]
[1756751267364,0.56894534,109330.0,109320.0,0.18609914]
[1756751267567,0.56894534,109330.0,109320.0,0.34109914]
[1756751267792,0.18294914,109320.0,109310.0,0.25332061]
[1756751267996,0.85888832,109320.0,109310.0,0.155]
[1756751269714,0.18296587,109310.0,109300.0,0.19526651]
[1756751269950,0.52093546,109310.0,109300.0,0.35223651]
[1756751270988,0.33796959,109310.0,109300.0,0.35223651]
[1756751271199,0.52093546,109310.0,109300.0,0.35223651]
[1756751271402,0.33796959,109310.0,109300.0,0.35223651]
[1756751271844,0.33796959,109310.0,109300.0,0.35323651]
[1756751272059,0.33796959,109310.0,109300.0,0.35423651]
[1756751273146,0.52093546,109310.0,109300.0,0.35423651]
[1756751275586,0.33796959,109310.0,109300.0,0.35423651]
[1756751276212,0.51150236,109330.0,109310.0,0.18296587]
[1756751276426,0.33796959,109320.0,109310.0,0.18611587]
[1756751276647,0.33796959,109320.0,109310.0,0.18808587]
[1756751278161,0.59548566,109330.0,109320.0,0.18294914]